bitfinex-derivatives/quotes_SOLF0:USTF0_20241017
["timestamp","ask_amount","ask_price","bid_price","bid_amount"]
[1729192521978,5.26,149.01,148.97,10.33]
[1729192522282,8.616,149.01,148.98,3.3565]
[1729192522683,8.616,149.01,148.98,13.6865]
[1729192523183,8.616,149.01,148.98,3.3565]
[1729192524285,8.616,149.01,148.98,13.6865]
[1729192525283,8.616,149.01,148.98,10.33]
[1729192525586,8.616,149.01,148.99,3.3564]
[1729192525979,8.616,149.01,148.98,10.33]
[1729192526185,8.616,149.01,148.98,13.6865]
[1729192528187,8.616,149.01,148.99,3.3564]
[1729192528588,8.616,149.01,148.98,10.33]
[1729192528889,8.616,149.01,148.98,13.6865]
[1729192530985,5.26,149.01,148.99,3.3564]
[1729192532792,8.616,149.01,148.99,3.3564]
[1729192533683,3.3564,149.0,148.97,10.33]
[1729192534390,3.3564,149.0,148.97,13.6867]
[1729192536786,5.26,149.01,148.98,10.33]
[1729192536987,5.26,149.01,148.99,10.33]
[1729192538292,8.6159,149.01,148.99,10.33]
[1729192539394,8.6159,149.01,148.98,13.6865]
[1729192542503,8.6159,149.01,148.99,10.33]
[1729192543207,5.26,149.01,148.99,13.6864]
[1729192548306,8.6159,149.01,148.99,13.6864]
[1729192551702,10.33,149.04,149.02,3.3557]
[1729192551703,5.24,149.04,149.02,3.3557]
[1729192551905,5.24,149.04,149.03,10.33]
[1729192552202,3.9364,149.09,149.03,10.33]
[1729192552203,19.38443708,149.09,149.04,3.3553]
[1729192552412,15.57,149.08,149.04,3.3553]
[1729192553308,15.57,149.08,149.03,13.6855]
[1729192554005,10.33,149.08,149.03,13.6855]
[1729192554313,3.3549,149.06,149.03,13.6855]
[1729192555607,3.3552,149.05,149.01,3.3557]
[1729192555815,10.33,149.04,148.99,13.2697]
[1729192556108,19.377292,149.09,148.98,10.33]
[1729192556109,15.57,149.03,148.98,10.33]
[1729192556505,3.3558,149.02,148.99,3.3563]
[1729192556712,15.57,149.03,148.96,5.24]
[1729192557012,3.356,149.01,148.98,3.3565]
[1729192558604,5.24,149.03,148.99,10.33]
[1729192559111,5.24,149.04,149.03,3.3554]
[1729192559513,8.5949,149.06,149.03,3.3554]
[1729192559711,8.5949,149.06,149.04,3.3553]
[1729192559910,8.5948,149.06,149.02,10.33]
[1729192560407,8.5948,149.06,149.03,3.3553]
[1729192560812,8.5948,149.06,149.03,13.6853]
[1729192561317,3.3551,149.05,149.02,13.6856]
[1729192561905,5.24,149.06,149.02,10.33]
[1729192562110,3.3554,149.04,149.01,10.33]
[1729192562309,10.33,149.04,148.99,10.33]
[1729192562714,3.3556,149.03,149.0,3.3561]
[1729192562901,10.33,149.05,149.0,10.33]
[1729192563310,10.33,149.02,148.98,1.3612]
[1729192563511,10.33,149.02,148.98,11.6912]
[1729192563718,3.3561,149.01,148.98,15.0476]
[1729192563917,15.57,149.02,148.98,10.33]
[1729192564315,3.3562,149.0,148.98,10.33]
[1729192567212,10.33,149.01,148.95,1.4977]
[1729192567516,10.33,148.97,148.92,11.7641]
[1729192568116,3.3572,148.96,148.93,3.3576]
[1729192568720,3.3572,148.96,148.92,11.7641]
[1729192568924,3.3572,148.96,148.94,3.3575]
[1729192569422,15.57,148.98,148.94,3.3575]
[1729192569423,18.9267,148.98,148.95,3.3572]
[1729192569813,15.57,148.98,148.95,3.3572]
[1729192570716,5.24,148.98,148.95,3.3572]
[1729192571018,8.5967,148.98,148.95,3.3572]
[1729192572114,5.24,148.98,148.95,10.33]
[1729192572620,5.24,148.98,148.95,11.7767]
[1729192573419,5.24,148.98,148.96,3.3569]
[1729192573721,3.3564,148.99,148.96,3.3569]
[1729192575118,3.3564,148.99,148.96,13.6869]
[1729192575318,15.57,149.0,148.96,10.33]
[1729192575319,5.24,149.0,148.96,10.33]
[1729192575518,8.5962,149.0,148.97,3.3568]
[1729192575721,3.3562,149.0,148.97,3.3568]
[1729192576424,18.926,149.01,148.97,3.3568]
[1729192576627,15.57,149.01,148.97,3.3568]
[1729192577526,3.3563,149.0,148.97,3.3568]
[1729192577931,15.57,149.01,148.97,3.3567]
[1729192577932,18.9261,149.01,148.97,3.3567]
[1729192578231,5.24,149.03,149.0,10.33]
[1729192578732,5.24,149.03,149.01,3.3558]
[1729192578932,3.3554,149.04,149.01,13.6858]
[1729192583121,3.3554,149.04,149.01,3.3558]
[1729192583429,3.3554,149.04,148.99,10.33]
[1729192583430,10.33,149.04,148.99,10.33]
[1729192583928,3.3558,149.02,148.99,13.6862]
[1729192586425,5.22,149.03,149.0,3.3561]
[1729192586620,8.5756,149.03,149.0,3.3561]
[1729192586821,8.5756,149.03,149.0,13.6861]
[1729192590129,5.22,149.03,148.99,10.33]
[1729192590427,10.33,149.01,148.97,2.8359]
[1729192590932,3.3563,149.0,148.97,6.1926]
[1729192591134,10.33,148.98,148.95,1.4467]
[1729192591634,10.33,148.96,148.92,1.3514]
[1729192592033,5.22,148.99,148.91,3.358]
[1729192592034,13.6877,148.94,148.91,3.358]
[1729192592236,18.29514333,149.04,148.89,11.737]
[1729192592237,5.22,148.95,148.89,1.407]
[1729192592429,10.33,148.92,148.89,1.407]
[1729192592628,13.688,148.92,148.89,4.7654]
[1729192592929,10.33,148.92,148.89,1.407]
[1729192593430,10.33,148.92,148.9,3.3584]
[1729192593823,3.3579,148.93,148.9,3.3584]
[1729192596736,3.3572,148.96,148.92,3.3578]
[1729192596932,5.22,148.96,148.89,17.527]
[1729192597131,16.12,148.99,148.89,17.527]
[1729192597334,2.8461,149.04,148.92,16.12]
[1729192597335,5.22,148.98,148.92,16.12]
[1729192597641,5.22,148.99,148.94,16.12]
[1729192597844,8.5763,149.0,148.97,3.3567]
[1729192598045,5.22,149.0,148.97,3.3567]
[1729192598731,8.5763,149.0,148.97,3.3567]
[1729192599126,1.0,149.09,148.95,22.8184]
[1729192599345,5.22,149.07,148.97,16.12]
[1729192599934,5.22,149.07,149.02,3.3555]
[1729192601039,172.26390615,149.08,149.02,3.3555]
[1729192601240,5.22,149.07,148.99,16.12]
[1729192601945,16.12,149.06,148.97,16.12]
[1729192602252,3.3554,149.04,148.96,2.8247]
[1729192602544,5.22,149.03,148.99,3.3562]
[1729192602846,5.22,149.03,148.96,2.8247]
[1729192603047,8.5756,149.03,148.99,3.3562]
[1729192604555,8.5756,149.03,149.0,3.3561]
[1729192605050,5.22,149.03,149.0,3.3561]
[1729192605257,3.3558,149.02,148.99,3.3562]
[1729192605448,3.3558,149.02,148.96,2.8247]
[1729192605855,5.22,149.03,148.96,2.8247]
[1729192606159,8.5756,149.03,149.0,3.3562]
[1729192612261,5.22,149.03,148.96,2.8247]
[1729192612464,5.22,149.03,149.01,3.3558]
[1729192615162,5.22,149.03,149.02,3.3557]
[1729192615662,152.78940615,149.08,148.99,16.12]
[1729192615967,5.22,149.05,149.04,3.3551]
[1729192617163,5.22,149.05,149.03,3.3553]
[1729192618965,3.3555,149.03,149.0,3.356]
[1729192619269,21.34,149.05,148.97,16.12]
[1729192619463,5.22,149.05,148.97,16.12]
[1729192619869,5.22,149.05,149.03,3.3554]
[1729192627166,10.31,149.04,149.03,3.3554]
[1729192627366,13.6654,149.04,149.01,3.3559]
[1729192627676,10.31,149.04,148.99,10.31]
[1729192628174,10.31,149.04,149.02,3.3557]
[1729192633170,10.31,149.03,148.96,8.0447]
[1729192633369,10.31,149.0,148.96,13.1347]
[1729192633874,10.31,149.0,148.98,3.3565]
[1729192634269,13.6666,148.99,148.96,3.357]
[1729192634575,10.31,148.97,148.96,3.357]
[1729192635176,13.6666,148.99,148.96,3.357]
[1729192636876,10.31,148.99,148.96,3.357]
[1729192637079,10.31,148.97,148.92,10.31]
[1729192637273,5.22,149.01,148.96,10.31]
[1729192637475,18.8861,149.01,148.98,3.3564]
[1729192637678,18.8861,149.01,148.96,13.73309769]
[1729192637876,15.53,149.01,148.96,13.73309769]
[1729192638074,18.886,149.01,148.98,3.3565]
[1729192639183,10.31,149.0,148.98,3.3565]
[1729192641677,10.31,149.0,148.96,1.4271]
[1729192641977,10.31,148.99,148.96,1.4271]
[1729192642283,10.31,149.0,148.96,1.4271]
[1729192642485,10.31,149.0,148.97,3.3567]
[1729192643186,10.31,149.0,148.96,1.4271]
[1729192643386,10.31,149.0,148.96,11.7371]
[1729192643786,10.31,149.0,148.96,1.4271]
[1729192643977,10.31,148.99,148.96,1.4271]
[1729192644180,10.31,148.97,148.92,10.31]
[1729192644487,10.31,148.95,148.93,3.3576]
[1729192644681,10.31,148.94,148.91,1.4654]
[1729192645089,10.31,148.94,148.92,3.3578]
[1729192645386,10.31,148.93,148.91,1.4654]
[1729192645690,10.31,148.93,148.91,4.8234]
[1729192646393,10.31,148.93,148.92,3.358]
[1729192646882,13.6676,148.94,148.92,3.358]
[1729192649688,10.31,148.93,148.92,3.358]
[1729192651476,13.6678,148.93,148.89,3.3585]
[1729192651680,10.31,148.92,148.88,2.8331]
[1729192653083,10.31,148.92,148.88,13.1431]
[1729192653481,10.31,148.92,148.91,3.3582]
[1729192654391,5.22,148.97,148.91,10.31]
[1729192654687,10.31,148.98,148.94,10.31]
[1729192654893,10.31,148.98,148.97,3.3568]
[1729192655188,5.22,148.99,148.95,10.31]
[1729192655391,5.22,148.99,148.98,3.3566]
[1729192660693,3.3556,149.03,148.96,19.48355197]
[1729192660990,5.22,149.03,148.96,22.40275197]
[1729192661187,211.29179,149.02,148.99,3.3562]
[1729192661585,211.29179,149.02,148.96,22.40275197]
[1729192662597,211.29179,149.02,148.99,3.3562]
[1729192666000,211.29179,149.02,149.0,3.3561]
[1729192666797,3.3563,149.0,148.97,3.3567]
[1729192667894,3.3563,149.0,148.98,3.3566]
[1729192668398,3.3561,149.01,148.98,3.3566]
[1729192669103,224.05609,149.02,148.97,3.3567]
[1729192669899,3.3563,149.0,148.97,3.3567]
[1729192670302,16.12,148.98,148.86,9.99398358]
[1729192670507,16.12,148.96,148.87,1.4965]
[1729192670707,5.22,148.95,148.87,1.4965]
[1729192670915,3.3576,148.94,148.91,3.3582]
[1729192671707,5.22,148.95,148.91,3.3582]
[1729192672007,8.5774,148.95,148.91,3.3582]
[1729192672502,3.3575,148.94,148.91,3.3582]
[1729192672903,8.5775,148.95,148.91,3.3582]
[1729192673206,5.22,148.95,148.93,3.3577]
[1729192674003,5.22,148.95,148.92,3.3579]
[1729192675104,8.5774,148.95,148.92,3.3579]
[1729192677414,5.22,148.95,148.91,3.38952629]
[1729192677614,5.22,148.95,148.87,17.6165]
[1729192678210,5.22,148.95,148.93,3.3576]
[1729192679516,5.22,148.95,148.93,3.3577]
[1729192680018,5.22,148.95,148.92,3.43386326]
[1729192680202,5.22,148.95,148.91,10.32]
[1729192680808,5.22,148.95,148.92,3.27600765]
[1729192681511,5.22,148.95,148.94,3.3575]
[1729192682216,13.6772,148.96,148.94,3.3575]
[1729192686320,10.32,148.96,148.94,3.3575]
[1729192686717,8.557,148.97,148.92,13.59600765]
[1729192686718,15.52,148.97,148.92,13.59600765]
[1729192686922,5.2,148.98,148.94,10.32]
[1729192687216,15.52,148.98,148.94,10.32]
[1729192687417,15.52,148.98,148.96,3.3569]
[1729192689417,10.32,148.98,148.97,3.3568]
[1729192689623,18.8762,149.0,148.95,10.32]
[1729192689828,10.32,149.01,148.97,10.32]
[1729192690026,5.2,149.01,148.97,10.32]
[1729192691217,5.2,149.01,148.99,3.3563]
[1729192691618,15.52,149.01,148.99,3.3563]
[1729192691911,18.876,149.01,148.99,3.3563]
[1729192693022,15.52,149.01,148.99,3.3563]
[1729192693426,10.32,149.0,148.95,10.32]
[1729192693632,3.3564,148.99,148.94,1.4104]
[1729192693823,10.32,148.98,148.94,11.7304]
[1729192694129,10.32,148.97,148.93,1.4762]
[1729192695630,10.32,148.97,148.96,3.357]
[1729192697823,13.677,148.97,148.94,3.3573]
[1729192698025,10.32,148.96,148.93,1.4762]
[1729192699634,13.6772,148.96,148.94,3.3575]
[1729192701330,5.2,148.97,148.96,3.3571]
[1729192701532,10.32,148.99,148.94,10.32]
[1729192701834,10.32,148.99,148.97,3.3567]
[1729192702334,10.32,148.99,148.94,10.32]
[1729192703228,10.32,148.99,148.97,3.3567]
[1729192703426,13.6764,148.99,148.97,3.3567]
[1729192703637,10.32,148.99,148.95,10.32]
[1729192703934,207.93609,149.02,148.98,3.3566]
[1729192703935,15.52,149.01,148.98,3.3566]
[1729192704342,18.876,149.01,148.99,3.3564]
[1729192704556,10.32,149.01,148.96,10.32]
[1729192704838,213.13609,149.02,149.0,3.356]
[1729192709235,213.13609,149.02,148.98,10.32]
[1729192709833,213.13609,149.02,149.0,3.356]
[1729192710436,223.45609,149.02,149.0,3.356]
[1729192713345,223.45609,149.02,148.97,10.32]
[1729192713346,223.45609,149.02,148.99,3.3564]
[1729192714247,226.81189,149.02,148.99,3.3564]
[1729192715443,223.45609,149.02,148.97,10.32]
[1729192715638,223.45609,149.02,149.0,3.356]
[1729192715842,223.45609,149.02,148.97,10.32]
[1729192716241,213.13609,149.02,149.01,3.3559]
[1729192716439,207.93609,149.02,149.01,3.3559]
[1729192722448,207.93609,149.02,149.01,13.6759]
[1729192724051,201.19779,149.02,149.01,13.6759]
[1729192724260,193.90579,149.02,149.01,3.3559]
[1729192726855,193.90579,149.02,149.01,13.6759]
[1729192738576,204.22579,149.02,148.99,3.3562]
[1729192738778,204.22579,149.02,148.96,10.32]
[1729192738779,10.32,149.01,148.96,10.32]
[1729192738979,10.32,148.99,148.93,4.3056]
[1729192739179,10.32,148.99,148.96,3.3569]
[1729192739584,13.6765,148.99,148.96,3.3569]
[1729192740277,13.6765,148.99,148.97,3.3568]
[1729192740477,10.32,148.99,148.94,10.32]
[1729192740680,195.36919,149.02,148.97,10.32]
[1729192740870,193.90579,149.02,148.99,10.32]
[1729192741474,193.90579,149.02,149.0,3.356]
[1729192742179,193.90579,149.02,148.99,10.32]
[1729192742379,193.90579,149.02,149.0,3.356]
[1729192743090,193.90579,149.02,149.01,3.3559]
[1729192751101,3.356,149.01,148.98,3.3565]
[1729192751401,3.356,149.01,148.96,10.32]
[1729192752281,3.356,149.01,148.99,3.3562]
[1729192754598,3.356,149.01,148.98,3.3565]
[1729192755008,3.356,149.01,148.97,3.3567]
[1729192755190,3.356,149.01,148.96,10.32]
[1729192756299,3.356,149.01,148.99,3.3563]
[1729192761210,193.90579,149.02,149.0,3.3562]
[1729192762196,193.90579,149.02,149.01,3.3559]
[1729192764807,193.90579,149.02,149.01,13.6759]
[1729192770211,193.90579,149.02,149.01,3.3559]
[1729192772500,197.26149,149.02,149.0,3.3561]
[1729192773912,3.3561,149.01,148.99,3.3564]
[1729192777924,3.3562,149.0,148.98,3.3565]
[1729192778420,13.6765,148.99,148.97,3.3568]
[1729192779512,10.32,148.99,148.97,3.3568]
[1729192781227,10.32,148.99,148.94,11.7161]
[1729192781228,196.84589,149.02,148.95,10.32]
[1729192781418,3.356,149.01,148.98,3.3564]
[1729192781720,3.356,149.01,148.97,10.32]
[1729192781721,204.22579,149.02,148.97,10.32]
[1729192781921,207.58159,149.02,148.98,10.32]
[1729192782713,207.58159,149.02,148.99,3.3562]
[1729192783418,197.26159,149.02,148.99,3.3562]
[1729192785225,197.26159,149.02,149.0,3.3561]
[1729192792134,193.90579,149.02,149.01,3.3559]
[1729192792523,193.90579,149.02,148.98,10.32]
[1729192793129,193.90579,149.02,149.0,3.3561]
[1729192795333,197.26149,149.02,149.0,3.3561]
[1729192795540,193.90579,149.02,148.98,10.32]
[1729192797740,193.90579,149.02,149.01,3.3559]
[1729192800537,3.3561,149.01,148.95,5.18]
[1729192800739,3.3561,149.01,148.96,10.32]
[1729192801144,3.3561,149.01,148.98,3.3564]
[1729192801442,3.3561,149.01,148.97,10.32]
[1729192802437,3.3561,149.01,148.99,3.3563]
[1729192803140,3.3561,149.01,148.95,5.18]
[1729192803141,193.90579,149.02,149.01,3.3559]
[1729192803346,184.92189,149.02,149.01,6.75390372]
[1729192803534,184.92189,149.02,149.01,3.3559]
[1729192803847,184.92189,149.02,149.01,6.64404249]
[1729192804234,184.92189,149.02,148.94,8.1111]
[1729192804543,195.24189,149.02,148.97,10.32]
[1729192805439,10.32,149.0,148.95,15.5]
[1729192805827,10.32,148.99,148.97,3.3567]
[1729192806543,10.32,148.99,148.98,3.3566]
[1729192806935,3.3562,149.0,148.98,3.3566]
[1729192809442,13.6759,149.01,148.99,3.3564]
[1729192812744,10.32,149.01,148.95,10.32]
[1729192814447,3.3562,149.0,148.98,3.3565]
[1729192815243,3.356,149.01,148.98,3.3565]
[1729192815449,13.676,149.01,148.98,3.3565]
[1729192816848,10.32,148.99,148.95,10.32]
[1729192817053,13.6765,148.99,148.97,3.3568]
[1729192817251,10.32,148.99,148.97,3.3568]
[1729192819445,6.1067,149.01,148.99,3.3564]
[1729192819644,10.32,149.0,148.99,3.3564]
[1729192820548,10.32,149.0,148.98,3.3565]
[1729192821550,10.32,149.0,148.95,10.32]
[1729192821753,190.10189,149.02,149.01,3.3559]
[1729192821948,184.92189,149.02,149.01,3.3559]
[1729192823244,184.92189,149.02,149.01,13.6759]
[1729192829250,184.92189,149.02,149.01,3.3559]
[1729192829458,184.92189,149.02,149.0,3.3561]
[1729192830865,184.92189,149.02,148.94,1.439]
[1729192830866,10.32,149.01,148.99,3.3563]
[1729192831960,13.676,149.01,148.99,3.3563]
[1729192832263,186.30259,149.02,148.99,3.3563]
[1729192832466,186.30259,149.02,149.0,3.3561]
[1729192832767,189.65839,149.02,149.0,3.3561]
[1729192833570,189.65839,149.02,148.97,10.32]
[1729192833869,199.97839,149.02,148.99,3.3563]
[1729192836966,196.62259,149.02,148.97,10.32]
[1729192837266,196.62259,149.02,148.94,5.16]
[1729192837267,186.30259,149.02,149.0,3.356]
[1729192840965,184.92189,149.02,149.01,13.60980263]
[1729192841170,184.92189,149.02,149.01,13.6759]
[1729192841861,184.92189,149.02,149.01,17.0187423]
[1729192862586,15.1213,149.07,149.01,13.6628423]
[1729192862782,15.1213,149.07,149.04,3.3551]
[1729192864283,11.7666,149.07,149.04,3.3551]
[1729192864584,3.3549,149.06,149.04,3.3551]
[1729192866495,13.6749,149.06,149.04,3.3551]
[1729192868201,3.3549,149.06,149.04,3.3551]
[1729192869289,15.1213,149.07,149.05,3.355]
[1729192869490,11.7666,149.07,149.03,3.35782866]
[1729192870399,3.3548,149.06,149.04,3.3551]
[1729192871201,11.7666,149.07,149.05,3.3549]
[1729192872101,15.1213,149.07,149.05,3.3549]
[1729192875308,1.4466,149.07,149.06,3.3548]
[1729192876003,4.8012,149.07,149.05,3.3549]
[1729192876399,4.8012,149.07,149.04,10.32]
[1729192876600,1.4466,149.07,149.06,3.3548]
[1729192877201,2.8412,149.08,149.05,10.32]
[1729192877405,1.4046,149.08,149.07,3.3546]
[1729192877608,1.0,149.09,149.05,10.32]
[1729192877908,11.32,149.09,149.05,10.32]
[1729192878108,13.6745,149.08,149.06,3.3548]
[1729192878310,10.32,149.07,148.97,6.7134]
[1729192878500,10.32,149.05,148.99,5.16]
[1729192878696,10.32,149.04,149.02,3.3556]
[1729192879307,13.6751,149.05,149.03,3.3555]
[1729192880004,3.3554,149.04,149.01,6.73633237]
[1729192880206,3.3554,149.04,149.0,10.32]
[1729192880603,10.32,149.05,149.0,10.32]
[1729192880810,13.6752,149.05,149.02,3.3556]
[1729192881106,13.6752,149.05,149.01,3.36375387]
[1729192881313,3.3552,149.05,149.03,3.3554]
[1729192882201,7.9488,149.07,149.03,10.32]
[1729192882399,2.7888,149.07,149.04,10.32]
[1729192882606,1.0,149.09,149.05,10.32]
[1729192882806,1.0,149.09,149.06,10.32]
[1729192883010,1.0,149.09,149.08,3.3544]
[1729192885916,1.0,149.09,149.01,8.47363661]
[1729192886110,1.0,149.09,149.05,10.32]
[1729192886712,1.0,149.09,149.07,3.3545]
[1729192886907,11.32,149.09,149.05,10.32]
[1729192887110,13.6746,149.08,149.05,3.3549]
[1729192888114,7.1657,149.09,149.06,3.3546]
[1729192888309,7.1657,149.09,149.06,10.32]
[1729192888310,3.8114,149.09,149.06,10.32]
[1729192888814,10.32,149.07,149.01,3.31363661]
[1729192889009,3.8114,149.09,149.02,10.32]
[1729192889210,13.6744,149.08,149.05,3.355]
[1729192889413,5.16,149.07,149.03,10.32]
[1729192889614,8.5147,149.07,149.04,3.3551]
[1729192890215,3.3548,149.06,149.04,3.3551]
[1729192892015,10.32,149.05,148.88,226.0]
[1729192892222,5.16,149.07,149.01,3.3558]
[1729192892223,10.32,149.04,149.01,3.3558]
[1729192892509,4.3537,149.03,149.01,3.3558]
[1729192892711,4.3537,149.03,148.99,10.32]
[1729192892912,4.3537,149.03,149.02,3.3557]
[1729192893514,10.32,149.06,149.04,3.3553]
[1729192893717,18.8348,149.07,149.04,3.3553]
[1729192894417,8.5148,149.07,149.04,3.3553]
[1729192894718,18.8348,149.07,149.04,3.3553]
[1729192896717,3.3548,149.06,149.04,3.3553]
[1729192897417,14.6737,149.08,149.03,10.32]
[1729192897626,4.3537,149.08,149.04,10.32]
[1729192898315,4.3537,149.08,149.04,13.74271957]
[1729192898711,7.7081,149.08,149.06,3.3547]
[1729192899422,4.3537,149.08,149.04,13.74271957]
[1729192900123,14.6743,149.09,149.04,13.74271957]
[1729192900717,14.6743,149.09,149.05,3.3549]
[1729192900913,14.6743,149.09,149.04,13.74271957]
[1729192901928,14.6743,149.09,149.06,3.3547]
[1729192906121,4.3543,149.09,149.07,3.3545]
[1729192911635,1.0,149.09,149.08,3.3544]
[1729192911821,1.0,149.09,149.0,6.7121]
[1729192912136,15.4580498,149.08,149.07,10.32]
[1729192912323,15.4580498,149.08,149.07,3.2855731]
[1729192912523,15.4580498,149.08,149.07,10.32]
[1729192912724,1.0,149.09,149.07,17.09975627]
[1729192914223,1.0,149.09,149.07,10.32]
[1729192914422,1.0,149.09,149.08,3.3544]
[1729192916921,1.0,149.09,149.08,13.6744]
[1729192917930,1.0,149.09,149.08,1.34580853]
[1729192918623,1.0,149.09,149.08,4.70020853]
[1729192919225,3.3529,149.15,149.13,3.3532]
[1729192919430,12.51259554,149.16,149.12,10.32]
[1729192919931,3.3528,149.15,149.12,13.6733]
[1729192920134,12.51259554,149.16,149.12,10.32]
[1729192920339,15.86529554,149.16,149.13,3.3531]
[1729192920740,7.37259554,149.16,149.12,10.32]
[1729192921045,7.37259554,149.16,149.14,10.32]
[1729192921226,7.37259554,149.16,149.15,13.6728]
[1729192924134,7.37259554,149.16,149.15,10.32]
[1729192924341,7.37259554,149.16,149.14,3.3529]
[1729192929047,7.37259554,149.16,149.12,10.32]
[1729192929048,3.3529,149.15,149.12,10.32]
[1729192929549,3.3529,149.15,149.12,13.6733]
[1729192929842,3.3529,149.15,149.12,10.32]
[1729192931463,3.3529,149.15,149.12,13.6733]
[1729192931751,10.32,149.13,149.08,2.68380156]
[1729192931938,10.32,149.12,149.08,3.3542]
[1729192932135,10.32,149.12,149.06,13.00409377]
[1729192932136,13.674,149.1,149.07,3.27844463]
[1729192932548,13.674,149.1,149.07,6.63294463]
[1729192932738,2.8079,149.12,149.05,10.32]
[1729192932739,3.3545,149.08,149.05,10.32]
[1729192932938,3.3545,149.08,149.04,5.14]
[1729192933147,3.3545,149.08,149.05,5.03265761]
[1729192933340,3.3545,149.08,149.04,18.8965438]
[1729192933536,3.3545,149.08,149.05,1.67786693]
[1729192933739,10.32,149.09,149.06,3.3548]
[1729192933949,13.6743,149.09,149.06,3.3548]
[1729192934947,13.6743,149.09,149.07,3.3546]
[1729192935942,10.32,149.09,149.07,3.3546]
[1729192937647,3.354,149.1,149.07,3.3546]
[1729192938254,13.1279,149.12,149.08,10.32]
[1729192938455,15.46,149.14,149.09,10.32]
[1729192938749,5.14,149.14,149.13,3.3532]
[1729192938949,5.14,149.14,149.13,6.64951947]
[1729192939472,10.72519554,149.16,149.13,6.64951947]
[1729192940158,7.37259554,149.16,149.13,3.29631947]
[1729192940449,10.72519554,149.16,149.13,13.61631947]
[1729192940647,10.72519554,149.16,149.13,10.32]
[1729192941249,10.72519554,149.16,149.13,17.06736648]
[1729192941451,7.37259554,149.16,149.13,13.71426648]
[1729192941856,7.37259554,149.16,149.14,3.353]
[1729192942862,10.72519554,149.16,149.13,3.3531]
[1729192946256,10.72519554,149.16,149.05,7.4819]
[1729192946257,17.69259554,149.16,149.1,10.32]
[1729192946758,3.3531,149.14,149.1,10.32]
[1729192946957,17.69259554,149.16,149.1,10.32]
[1729192947557,3.353,149.15,149.1,10.32]
[1729192948151,3.353,149.15,149.11,3.3535]
[1729192948356,3.353,149.15,149.1,10.32]
[1729192948661,3.353,149.15,149.12,3.3534]
[1729192953871,3.353,149.15,149.11,10.32]
[1729192954071,3.353,149.15,149.12,3.3534]
[1729192956069,7.37259554,149.16,149.15,3.3528]
[1729192963478,7.37259554,149.16,149.13,10.32]
[1729192964078,7.37259554,149.16,149.15,3.3528]
[1729192968182,7.37259554,149.16,149.15,13.6728]
[1729192976384,7.37259554,149.16,149.15,3.3528]
[1729192976584,7.37259554,149.16,149.15,13.6728]
[1729192984297,7.37259554,149.16,149.15,15.34978306]
[1729192984799,1.0,149.19,149.15,14.67973792]
[1729192985011,1.0,149.19,149.18,13.6721]
[1729192985392,1.0,149.19,149.18,15.34865205]